Cogmind - Beta 12 @@@ ROGUE MODE // 2023.08.05 @ 00:31:50 Player: Roxy Result: Destroyed by H-55 Commando with Gauss Rifle Performance ------------- Evolutions (3) 1500 Regions Visited (5) 1000 Robots Destroyed (53) 265 Value Destroyed (1465) 1465 Prototype IDs (1) 20 Alien Tech Used (0) 0 Bonus (0) 0 TOTAL SCORE: 4250 Bonus ------- None Cogmind --------- Core Integrity 0/700 Matter 100/300 Energy 100/100 System Corruption 7% Temperature Cool (18) Movement Core (350) Ox6 Location -7/Factory Parts ------- > --- POWER (2) -------- (None) > --- PROPULSION (4) --- (None) > --- UTILITY (4) ------ Large Storage Unit > --- WEAPON (3) ------- (None) > --- INVENTORY (15) --- (None) Peak State ------------ > --- POWER ------------ Light Ion Engine Deuterium Engine > --- PROPULSION ------- Aluminum Leg Aluminum Leg Aluminum Leg Titanium Leg > --- UTILITY ---------- Large Storage Unit Improved Sensor Array Signal Interpreter Advanced Targeting Computer > --- WEAPON ----------- Heavy Assault Rifle Heavy Assault Rifle Enhanced Autogun > --- INVENTORY -------- Light Ion Engine Improved Ion Engine Aluminum Leg Medium Laser Particle Gun Heavy Ion Cannon Light Assault Rifle Heavy Assault Rifle Rocket Launcher [Rating: 27] Favorites ----------- Power Ion Engine Engine Ion Engine Propulsion Aluminum Leg Leg Aluminum Leg Utility Signal Interpreter Device Improved Sensor Array Storage Medium Storage Unit Processor Signal Interpreter Weapon Heavy Assault Rifle Energy Gun Particle Gun Energy Cannon Heavy Ion Cannon Ballistic Gun Heavy Assault Rifle Launcher Rocket Launcher Build | -11 -10 -10 -9 -8 -7 ------- Run | Jun Mat Min Mat Mat Fac Slots Evolved 6 | . . . 2 2 2 Power 1 | . . . . . 1 Propulsion 2 | . . . 2 . . Utility 2 | . . . . 1 1 Weapon 1 | . . . . 1 . Parts Attached 46 | 6 6 . 13 7 14 Power 8 | 1 1 . 2 1 3 Engine 8 | 1 1 . 2 1 3 Core . | . . . . . . Reactor . | . . . . . . Propulsion 15 | 2 3 . 7 1 2 Treads . | . . . . . . Leg 15 | 2 3 . 7 1 2 Wheel . | . . . . . . Hover . | . . . . . . Flight . | . . . . . . Utility 8 | 1 2 . 1 3 1 Device 2 | . . . . 2 . Storage 3 | 1 1 . . 1 . Processor 3 | . 1 . 1 . 1 Hackware . | . . . . . . Protection . | . . . . . . Artifact . | . . . . . . Weapon 15 | 2 . . 3 2 8 Energy Gun 2 | . . . . . 2 Energy Cannon 2 | . . . . . 2 Ballistic Gun 10 | 2 . . 3 2 3 Ballistic Cannon . | . . . . . . Launcher 1 | . . . . . 1 Special Weapon . | . . . . . . Impact Weapon . | . . . . . . Slashing Weapon . | . . . . . . Piercing Weapon . | . . . . . . Special Melee Weapon . | . . . . . . Unidentified Prototypes 1 | . . . . . 1 Parts Lost 35 | . 4 . 8 1 22 Power 6 | . 1 . 1 . 4 Propulsion 13 | . 3 . 4 . 6 Utility 5 | . . . 1 1 3 Weapon 11 | . . . 2 . 9 Highest Loss Streak 16 | . 3 . 5 1 16 To Critical Strikes . | . . . . . . Average Slot Usage (%) 94 | . 97 100 94 97 87 Engine 11 | . 13 14 10 9 13 Leg 31 | . 26 28 41 36 22 Device 3 | . . . . 7 5 Storage 10 | . 14 14 11 9 7 Processor 12 | . 13 14 10 9 13 Ballistic Gun 23 | . 28 28 19 25 20 Naked Turns . | . . . . . . Heaviest Build 42 | 12 17 17 21 39 42 Greatest Support 47 | 20 20 20 40 47 47 Greatest Overweight (x) 11 | . 1 . . . 11 Average Overweight (x) . | . . . . . . Largest Inventory Capacity 15 | 8 10 10 10 15 15 Average Capacity 11 | 7 8 10 10 13 15 Most Carried 10 | 4 6 7 10 9 9 Average Carried 6 | 2 3 6 7 6 7 Final Capacity 15 | 8 10 10 10 15 15 Final Carried 9 | 2 6 7 9 9 . Class Distribution -------------------- 35% | Mutant 27% | Scavenger-Skirmisher 24% | Scavenger-Mutant 9% | Scavenger-Gunner Dominant Class ---------------- Mutant | -10/Materials Mutant | -10/Mines Scavenger-Mutant | -9/Materials Scavenger-Skirmisher | -8/Materials Scavenger-Skirmisher | -7/Factory Resources | -11 -10 -10 -9 -8 -7 ----------- Run | Jun Mat Min Mat Mat Fac Matter Collected 960 | 244 54 22 306 207 127 Remotely . | . . . . . . Salvage Created 1848 | . 307 . 479 251 811 Parts 114 | . 21 . 30 23 40 Haulers Intercepted 1 | . . . . . 1 Recyclers Shooed . | . . . . . . Parts Field Recycled . | . . . . . . Retrieved Matter . | . . . . . . Parts Self-Destructed . | . . . . . . Prevented . | . . . . . . Kills | -11 -10 -10 -9 -8 -7 ------- Run | Jun Mat Min Mat Mat Fac Combat Hostiles Destroyed 40 | . 9 . 12 9 10 Guns 37 | . 9 . 12 9 7 Cannons 1 | . . . . . 1 AOE 2 | . . . . . 2 Classes Destroyed 8 | . 3 . 1 . 4 Worker 3 | . . . . . 3 Tunneler 1 | . . . . . 1 Hauler 1 | . . . . . 1 Recycler 3 | . . . . . 3 Watcher 5 | . 1 . 1 1 2 Swarmer 13 | . 3 . 3 7 . Grunt 22 | . 6 . 7 . 9 Sentry 5 | . . . 2 2 1 Best Kill Streak 13 | . 5 . 3 5 13 Combat Bots Only 6 | . 4 . 3 4 6 Max Kills in Single Turn 8 | . 2 . 2 2 8 Gunslinging 1 | . 1 . 1 1 . Exploded 2 | . . . . . 2 Melee . | . . . . . . Uniques/NPCs Destroyed . | . . . . . . Combat | -11 -10 -10 -9 -8 -7 -------- Run | Jun Mat Min Mat Mat Fac Damage Taken 4179 | . 826 . 783 279 2291 Core 1069 | . 173 . 130 62 704 Absorbed by Shields . | . . . . . . Core Remaining (%) 71 | 100 . 30 67 88 . Volleys Fired 146 | . 42 . 45 18 41 Largest 3 | . 2 . 2 3 3 Hottest 123 | . 40 . 46 69 123 Shots Fired 315 | . 84 . 72 54 105 Gun 301 | . 84 . 72 54 91 Cannon 12 | . . . . . 12 Launcher 2 | . . . . . 2 Special . | . . . . . . Kinetic 292 | . 84 . 72 54 82 Thermal 21 | . . . . . 21 Explosive 2 | . . . . . 2 Electromagnetic . | . . . . . . Robot Hit Streak 18 | . 18 . 13 8 8 Robot Miss Streak 4 | . 2 . 3 3 4 Penetration Max . | . . . . . . Secondary Targets 6 | . 2 . 1 2 1 Max Gunslinging Chain 1 | . 1 . 1 1 1 Shots Hit Robots 206 | . 60 . 55 26 65 Core Hits 93 | . 23 . 22 13 35 Critical Kills 3 | . 2 . . . 1 Critical Parts Destroyed 2 | . 1 . 1 . . Critical Strikes 5 | . 3 . 1 . 1 Destroy 5 | . 3 . 1 . 1 Melee Attacks . | . . . . . . Impact . | . . . . . . Slashing . | . . . . . . Piercing . | . . . . . . Sneak Attacks . | . . . . . . Combat Hostiles . | . . . . . . Follow-up Attacks . | . . . . . . Damage Inflicted 3733 | . 477 . 695 434 2127 Guns 2481 | . 477 . 695 430 879 Cannons 186 | . . . . . 186 Explosions 1062 | . . . . . 1062 Melee . | . . . . . . Ramming 4 | . . . . 4 . Kinetic 2374 | . 477 . 695 430 772 Thermal 1045 | . . . . . 1045 Explosive 310 | . . . . . 310 Electromagnetic . | . . . . . . Impact . | . . . . . . Slashing . | . . . . . . Piercing . | . . . . . . Highest Corruption 7 | . . . . . 7 Average Corruption 7 | . . . . . 7 Corruption Purged . | . . . . . . Corruption Blocked . | . . . . . . Effects 1 | . . . . . 1 Message Errors 1 | . . . . . 1 Overload Shots . | . . . . . . Overflow Damage 187 | . . . . . 187 Projectiles . | . . . . . . Explosions 187 | . . . . . 187 Melee . | . . . . . . Knockbacks . | . . . . . . Impact . | . . . . . . Kinetic . | . . . . . . Secondary . | . . . . . . Self-Inflicted Damage 130 | . . . . . 130 Shots 3 | . . . . . 3 Rammed . | . . . . . . Targets Rammed 1 | . . . . 1 . Kicked 1 | . . . . 1 . Crushed . | . . . . . . Highest Temperature 544 | . 48 . 10 6 544 Average Temperature 103 | . 20 . 4 5 164 Received Heat Transfer 1668 | . 435 . 255 27 951 Effects 10 | . . . . . 10 Shutdowns 3 | . . . . . 3 Interference 2 | . . . . . 2 Damage (minor) 1 | . . . . . 1 Damage (major) 4 | . . . . . 4 Siege Activations . | . . . . . . Robots Corrupted . | . . . . . . Combat Hostiles . | . . . . . . Parts Fried . | . . . . . . Impact Corruptions . | . . . . . . Robots Melted . | . . . . . . Combat Hostiles . | . . . . . . Parts Melted . | . . . . . . Heat Transferred 968 | . . . . . 968 Parts Sabotaged . | . . . . . . Parts Stolen . | . . . . . . Parts Stripped . | . . . . . . Power Chain Reactions . | . . . . . . Missiles Intercepted . | . . . . . . Alert | -11 -10 -10 -9 -8 -7 ------- Run | Jun Mat Min Mat Mat Fac Peak Influence 282 | . 237 92 197 282 234 Initial 128 | . . 92 35 34 128 Average 131 | . 145 92 100 171 156 Maximum Alert Level 1 | . 1 . 1 1 1 Low Security (%) 79 | 100 55 100 99 58 82 Level 1 20 | . 44 . . 41 17 Level 2 . | . . . . . . Level 3 . | . . . . . . Level 4 . | . . . . . . Level 5 . | . . . . . . High Security . | . . . . . . Max Security . | . . . . . . Squads Dispatched 5 | . . . 2 . 3 Investigation . | . . . . . . Extermination 1 | . . . . . 1 Reinforcement 4 | . . . 2 . 2 Assault . | . . . . . . Garrison . | . . . . . . Intercept . | . . . . . . Searches Triggered . | . . . . . . Construction Impeded 1 | . . . . . 1 Haulers Reinforced . | . . . . . . Active Scanning Responses . | . . . . . . Cargo Convoy Interrupts . | . . . . . . Stealth | -11 -10 -10 -9 -8 -7 --------- Run | Jun Mat Min Mat Mat Fac Distress Signals 5 | . 2 . 2 1 . Communications Jammed . | . . . . . . Distress Signals . | . . . . . . Times Spotted 65 | . 17 . 16 12 20 Peak Tracking Total 8 | . 5 . 6 4 8 Tactical Retreats 1 | . . . 1 . . Traps | -11 -10 -10 -9 -8 -7 ------- Run | Jun Mat Min Mat Mat Fac Traps Triggered 1 | . . . 1 . . Indirectly . | . . . . . . Trap Hack Attempts . | . . . . . . Triggered . | . . . . . . Disarmed . | . . . . . . Reprogrammed . | . . . . . . Reused . | . . . . . . Traps Extracted . | . . . . . . Installed . | . . . . . . Triggered . | . . . . . . Machines | -11 -10 -10 -9 -8 -7 ---------- Run | Jun Mat Min Mat Mat Fac Machines Disabled 7 | . . . . 1 6 Max in Single Turn 6 | . . . . 1 6 Machines Repaired . | . . . . . . Machines Sabotaged . | . . . . . . Overloaded Fab Kills . | . . . . . . Hacking | -11 -10 -10 -9 -8 -7 --------- Run | Jun Mat Min Mat Mat Fac Machines Accessed 6 | . 3 . 2 . 1 Terminals 5 | . 2 . 2 . 1 Fabricators . | . . . . . . Repair Stations . | . . . . . . Recycling Units 1 | . 1 . . . . Scanalyzers . | . . . . . . Garrison Access . | . . . . . . Total Hacks 9 | . 4 . 4 . 1 Successful 6 | . 2 . 3 . 1 Failed 3 | . 2 . 1 . . Catastrophic . | . . . . . . Database Lockouts . | . . . . . . Manual . | . . . . . . Terminals 8 | . 3 . 4 . 1 Fabricators . | . . . . . . Repair Stations . | . . . . . . Recycling Units 1 | . 1 . . . . Scanalyzers . | . . . . . . Garrison Access . | . . . . . . Terminal Hacks 5 | . 1 . 3 . 1 Record 2 | . . . 2 . . Open DSF 1 | . . . . . 1 Locate Traps 2 | . 1 . 1 . . Fabricator Hacks . | . . . . . . Repair Station Hacks . | . . . . . . Recycling Unit Hacks 1 | . 1 . . . . Retrieve Components 1 | . 1 . . . . Scanalyzer . | . . . . . . Garrison Access Hacks . | . . . . . . Unauthorized Hacks . | . . . . . . Terminals . | . . . . . . Fabricators . | . . . . . . Repair Stations . | . . . . . . Recycling Units . | . . . . . . Scanalyzers . | . . . . . . Garrison Access . | . . . . . . Data Cores Recovered . | . . . . . . Used . | . . . . . . Hacking Detections 3 | . 2 . 1 . . Full Trace Events . | . . . . . . Feedback Events . | . . . . . . Feedback Blocked . | . . . . . . Robot Schematics Acquired . | . . . . . . Robots Built . | . . . . . . Authchips . | . . . . . . Time . | . . . . . . Total Robot Build Rating . | . . . . . . Part Schematics Acquired . | . . . . . . Parts Built . | . . . . . . Authchips . | . . . . . . Time . | . . . . . . Total Part Build Rating . | . . . . . . Parts Repaired . | . . . . . . Time . | . . . . . . Parts Recycled . | . . . . . . Recycled Matter . | . . . . . . Retrieved Matter . | . . . . . . Retrieved Components 10 | . 10 . . . . Parts Scanalyzed . | . . . . . . Part Schematics Acquired . | . . . . . . Parts Damaged . | . . . . . . Bothacking | -11 -10 -10 -9 -8 -7 ------------ Run | Jun Mat Min Mat Mat Fac Used RIF Installer . | . . . . . . Robots Hacked . | . . . . . . Non-combat . | . . . . . . Combat . | . . . . . . Robot Hacks Applied . | . . . . . . Relay Couplers Released . | . . . . . . Fabnet Peak Effective % . | . . . . . . Robots Rewired . | . . . . . . Allies Hacked . | . . . . . . Hacks Repelled . | . . . . . . Allies | -11 -10 -10 -9 -8 -7 -------- Run | Jun Mat Min Mat Mat Fac Total Allies . | . . . . . . Largest Group . | . . . . . . Highest-Rated Group . | . . . . . . Highest-Rated Ally . | . . . . . . Total Orders . | . . . . . . Ally Attacks . | . . . . . . Total Damage . | . . . . . . Kills . | . . . . . . Allies Corrupted . | . . . . . . Allies Melted . | . . . . . . Intel | -11 -10 -10 -9 -8 -7 ------- Run | Jun Mat Min Mat Mat Fac Robot Analysis Total . | . . . . . . Derelict Logs Recovered . | . . . . . . Drone Launches . | . . . . . . Drone Recoveries . | . . . . . . Exploration | -11 -10 -10 -9 -8 -7 ------------- Run | Jun Mat Min Mat Mat Fac Turns Passed 2078 | 71 358 218 488 380 563 Spaces Moved 1156 | 55 183 174 229 226 289 Core 17 | 9 . . . . 8 Treads . | . . . . . . Legs 1139 | 46 183 174 229 226 281 Wheels . | . . . . . . Hover . | . . . . . . Flight . | . . . . . . Fastest Speed 50 | 50 120 120 120 120 122 Average Speed 124 | 108 121 120 120 120 139 Slowest Speed 600 | 120 190 120 120 122 600 Overloaded Moves . | . . . . . . Propulsion Burnouts . | . . . . . . Robots Hopped . | . . . . . . Cave-ins Triggered . | . . . . . . Exploration Rate (%) 27 | 3 47 51 25 25 14 Regions Visited 5 Branch Regions 1 Pre-discovered Areas . | . . . . . . Known Exits Taken 2 | . . . 1 1 . Unknown Exits Taken 3 | 1 1 1 . . . Scrap Searched 1 | . . 1 . . . Spaces Dug . | . . . . . . Terrain Destroyed 34 | . . . . . 34 Melee . | . . . . . . Projectile 2 | . . . . . 2 AOE 32 | . . . . . 32 Terrain Rammed . | . . . . . . Walls Destroyed . | . . . . . . Machines Disabled . | . . . . . . Actions | -11 -10 -10 -9 -8 -7 --------- Run | Jun Mat Min Mat Mat Fac Total 1546 | 64 250 183 376 292 381 Wait 161 | . 9 9 74 35 34 Move 1151 | 54 182 173 228 225 289 Hop . | . . . . . . Pick Up 37 | 4 10 1 14 5 3 Fast Attach 6 | 4 . . 2 . . Attach 33 | 2 5 . 10 4 12 Detach . | . . . . . . Swap 7 | . 1 . 1 3 2 Drop 4 | . 1 . 2 1 . Fire 146 | . 42 . 45 18 41 Melee . | . . . . . . Ram . | . . . . . . Kick 1 | . . . . 1 . Crush . | . . . . . . Escape Stasis . | . . . . . . Rewire . | . . . . . . Trap . | . . . . . . Miscellaneous . | . . . . . . Route ------- -11/Junkyard -10/Materials -10/Mines -9/Materials -8/Materials -7/Factory History --------- Turn | Location | Event 8 | -11/Junkyard | Discovered new exit (range 14) 72 | -11/Junkyard | Entered Materials 240 | -10/Materials | Core integrity fell below 50% 254 | -10/Materials | Lost 3 parts (1p2n) 324 | -10/Materials | Build established: Mutant 424 | -10/Materials | Discovered new exit (range 6) 430 | -10/Materials | Entered Mines 586 | -10/Mines | Received a Rocket Launcher from a helpful Derelict 599 | -10/Mines | Discovered new exit (range 9) 648 | -10/Mines | Entered Materials 648 | -9/Materials | Evolved 2 slots: Propulsion x2 966 | -9/Materials | Build established: Scavenger-Mutant 1104 | -9/Materials | Lost 5 parts (1p3n1w) 1131 | -9/Materials | Discovered new exit (range 4) 1135 | -9/Materials | Identified exit to Materials 1136 | -9/Materials | Entered another Materials area 1136 | -8/Materials | Evolved 2 slots: Utility x1, Weapon x1 1494 | -8/Materials | Discovered new exit (range 7) 1508 | -8/Materials | Identified exit to Factory 1516 | -8/Materials | Entered Factory 1516 | -7/Factory | Evolved 2 slots: Power x1, Utility x1 1631 | -7/Factory | Build established: Scavenger-Skirmisher 1967 | -7/Factory | Lost 4 parts (1p2n1w) 2057 | -7/Factory | Core integrity fell below 50% 2077 | -7/Factory | Core integrity fell below 20% 2079 | -7/Factory | Destroyed by H-55 Commando with Gauss Rifle Last Messages --------------- B-48 Gladiator heat short circuits Lgt. Treads. Penetrated by Slug. U-05 Engineer lays Concrete. Hvy. Ion Cannon destroyed. Rocket Launcher destroyed. Med. Laser destroyed. K-01 Serf collects debris. U-05 Engineer lays Concrete. Penetrated by Slug. U-05 Engineer lays Concrete. W2L:HG81ZIFE< :OJONP Slug penetrates Wall. K-01 Serf collects debris. Penetrated by Slug. U-05 Engineer lays Concrete. K-01 Serf collects debris. U-05 Engineer lays Concrete. Penetrated by Slug. U-05 Engineer lays Concrete. Knocked back. Map ----- +----------------------------------------------------+ | ???????????????????????# [ #????????????? | | ???????????????????????# #????????????? | | ???????????????????????# [ #????????????? | | ???????????????????????# #????????????? | | ???????????????????????# "" """ #????????????? | | ???????????????????????# """ """ #????????????? | | ???????????????????????# "T """ #????????????? | | ???????????????????????# """ "" #????????????? | | ???????????????????????# "" "" #????????????? | | ???????????????????????# #????????????? | | ???????????????????????#####+########????????????? | | ???????????????????????????# #???????????????????? | | ?????????????##########????# #???????????????????? | | ?????????????# ##### ####????????????????? | | ?????????????# ! #????????????????? | | ???????????? #????????????????? | | ???????????? / % % #????????????????? | | ??????????? % #????????????????? | | ??????????? #????????????????? | | ??????????? #????????????????? | | ?????????????# #??#?????????????? | | ?????????????# ## %# ###???????????? | | ?????????????#####+####?# % % ##!;;#####???????? | | ????????????????????????# % = #???????? | | ????????????????????????# % #???????? | | ????????????????????????#@ " #???????? | | ????????????????????????# #???????? | | ????????????????????????#b ##??????? | | ????????????????????????# u ##??????? | | ????????????????????????# % ##??????? | | ????????????????????????##g ##??????? | | ????????????????????????## #??????? | | ????????????????????????## gk gg h % ?????? | | ????????????????????????## * u g ?????? | | ?????????????????????????#!k ?????? | | ?????????????????????????# ! ### ?????? | | ?????????????????????????#=* u### ??????? | | ????????????????????????##%! #?? ??????? | | ????????????????????????##| #??? ???????? | | ??????????????????????? # % #???#######???????? | | ??????????????????????# #?????????????????? | | ??????????????????????## %##????????????????? | | ??????????????????????? %^^*#?????????????????? | | ??????????????????????# # [^*##????????????????? | | ??????????????????????#### ^#?????????????????? | | ?????????????????????????# ^#?????????????????? | | ?????????????????????????# #?????????????????? | | ?????????????????????????# #?????????????????? | | ????????????????????????? ?????????????????? | | ????????????????????????? ?????????????????? | +----------------------------------------------------+ Best States ------------- Heat Dissipation 41 Energy Generation 19 Energy Capacity 300 Matter Stores 300 Matter Capacity 300 Sight Range 16 Robot Scan Range 15 Terrain Scan Density 10 Evasion (%) 55 Targeting Accuracy 8 Item Schematics ----------------- None Robot Schematics ------------------ None Fabricated ------------ Nothing Alien Tech Used ----------------- None Achievements -------------- Oops Challenges ------------ None Game ------ Seed ScatterParticleStorm Manual? 0 Play Time 00:24:46 Cumulative 10.0 hours Start 2023.08.05 @ 00:10:10 End 2023.08.05 @ 00:31:50 Sessions 1 Manual Loads 0 Difficulty Rogue Special Mode None Game No. 16 Rogue 16 Adventurer 0 Explorer 0 Win Type - Total 0 Types 0/0/0/0/0/0/0/0/0 Lore% 12 Gallery% 15 Achievement% 12 Wizard Run 0 Options --------- ASCII 0 Keyboard 0 Movement Mouse Keybinds 0 Fullscreen 1 Font 18/SmallcapsGlow Map View 76x50 Tactical HUD 0 Map Filters NONE Filters NONE Steam 1 RUN: 4af6b599-6966-4484-bf6b-7a42996aa069